bitfinex/quotes_BTCUSD_20241023
["timestamp","ask_amount","ask_price","bid_price","bid_amount"]
[1729712519812,0.000823,66439.0,66430.0,0.15050381]
[1729712520259,0.000823,66439.0,66433.0,0.150527]
[1729712520494,0.000823,66439.0,66437.0,0.17419982]
[1729712520735,0.000823,66439.0,66437.0,0.32471782]
[1729712520994,0.000823,66439.0,66438.0,0.150516]
[1729712522102,0.000823,66439.0,66436.0,0.150519]
[1729712522798,0.000823,66439.0,66435.0,0.15050381]
[1729712523295,0.000823,66439.0,66436.0,0.15052]
[1729712523743,0.000823,66439.0,66435.0,0.15050381]
[1729712523963,0.000823,66439.0,66436.0,0.15052]
[1729712524185,0.000823,66439.0,66435.0,0.15050381]
[1729712524399,0.000823,66439.0,66435.0,0.30102481]
[1729712524619,0.000823,66439.0,66435.0,0.30102581]
[1729712524852,0.000823,66439.0,66436.0,0.30104]
[1729712525075,0.000823,66439.0,66435.0,0.15050381]
[1729712525300,0.000823,66439.0,66435.0,0.30102481]
[1729712525531,0.000823,66439.0,66435.0,0.15050381]
[1729712525741,0.000823,66439.0,66438.0,0.150516]
[1729712526421,0.000823,66439.0,66435.0,0.15050381]
[1729712526644,0.000823,66439.0,66436.0,0.15052]
[1729712526878,0.000823,66439.0,66435.0,0.15050381]
[1729712526879,0.000823,66439.0,66438.0,0.150516]
[1729712527096,0.000823,66439.0,66435.0,0.30102581]
[1729712527320,0.000823,66439.0,66437.0,0.150518]
[1729712527784,0.000823,66439.0,66436.0,0.15052]
[1729712527787,0.000823,66439.0,66435.0,0.15050381]
[1729712527995,0.000823,66439.0,66426.0,0.752714]
[1729712528218,0.000823,66439.0,66427.0,0.15521183]
[1729712528430,0.000823,66439.0,66432.0,0.150529]
[1729712528656,0.150522,66436.0,66427.0,0.30104281]
[1729712528903,0.22596998,66438.0,66427.0,0.30104281]
[1729712528904,0.150519,66437.0,66428.0,0.150538]
[1729712529120,0.150521,66436.0,66429.0,0.15050381]
[1729712529348,0.22596998,66438.0,66429.0,0.15050381]
[1729712529589,0.22596998,66438.0,66429.0,0.30103981]
[1729712529810,0.150518,66437.0,66429.0,0.30103981]
[1729712530045,0.17419982,66435.0,66421.0,0.150553]
[1729712530269,0.150537,66429.0,66420.0,0.150555]
[1729712530484,0.0822,66434.0,66420.0,0.15050381]
[1729712530705,0.22596998,66431.0,66420.0,0.30105881]
[1729712530935,0.04893698,66430.0,66414.0,0.301139]
[1729712531170,0.1771,66429.0,66416.0,0.45163481]
[1729712531407,0.327636,66429.0,66420.0,0.150555]
[1729712531838,0.1771,66429.0,66419.0,0.301118]
[1729712532080,0.1771,66429.0,66424.0,0.150546]
[1729712532329,0.22596998,66430.0,66419.0,0.32470363]
[1729712532551,0.22596998,66430.0,66425.0,0.150543]
[1729712532986,0.22596998,66430.0,66420.0,0.15050381]
[1729712532987,0.22596998,66430.0,66420.0,0.45161581]
[1729712533200,0.301027,66440.0,66420.0,0.15050381]
[1729712533412,0.306011,66443.0,66427.0,0.17419982]
[1729712533628,0.325538,66439.0,66427.0,0.62578463]
[1729712533844,0.175023,66439.0,66427.0,0.15050381]
[1729712534056,0.37648598,66438.0,66428.0,0.150537]
[1729712534477,0.22596998,66438.0,66427.0,0.15050381]
[1729712534706,0.22596998,66428.0,66417.0,0.301124]
[1729712534930,0.17419982,66432.0,66417.0,0.22596998]
[1729712535143,0.005,66431.0,66415.0,0.001646]
[1729712535360,0.150544,66426.0,66415.0,0.15214981]
[1729712535575,0.30109,66426.0,66415.0,0.15214981]
[1729712535794,0.22596998,66427.0,66415.0,0.15214981]
[1729712536022,0.150544,66426.0,66415.0,0.15214981]
[1729712536680,0.15055,66424.0,66415.0,0.15214981]
[1729712536897,0.301087,66426.0,66415.0,0.001646]
[1729712537331,0.3544927,66426.0,66415.0,0.001646]
[1729712537546,0.15055,66423.0,66415.0,0.001646]
[1729712537987,0.3544927,66426.0,66415.0,0.001646]
[1729712537988,0.0534057,66426.0,66415.0,0.001646]
[1729712538194,0.301095,66424.0,66415.0,0.001646]
[1729712538404,0.0752,66425.0,66415.0,0.001646]
[1729712538623,0.15055,66423.0,66415.0,0.001646]
[1729712539074,0.150556,66421.0,66415.0,0.001646]
[1729712539286,0.150554,66422.0,66415.0,0.001646]
[1729712539507,0.0752,66425.0,66415.0,0.001646]
[1729712539508,0.301095,66424.0,66415.0,0.001646]
[1729712539944,0.150553,66422.0,66415.0,0.001646]
[1729712540167,0.155566,66416.0,66415.0,0.001646]
[1729712540630,0.64403979,66416.0,66415.0,0.001646]
[1729712540843,0.41806981,66416.0,66415.0,0.001646]
[1729712541310,0.04502087,66425.0,66415.0,0.32634963]
[1729712541528,0.22596998,66424.0,66422.0,0.17419982]
[1729712541736,0.22596998,66424.0,66415.0,0.001646]
[1729712541948,0.150535,66430.0,66419.0,0.150557]
[1729712542167,0.150535,66430.0,66420.0,0.150555]
[1729712542168,0.22596998,66426.0,66420.0,0.150555]
[1729712542389,0.22596998,66426.0,66419.0,0.150558]
[1729712542613,0.22596998,66426.0,66420.0,0.15050381]
[1729712542828,0.22596998,66426.0,66421.0,0.150553]
[1729712543041,0.22596998,66426.0,66421.0,0.15050381]
[1729712543262,0.150531,66432.0,66422.0,0.150551]
[1729712543476,0.150527,66433.0,66423.0,0.150549]
[1729712543689,0.15053,66432.0,66422.0,0.150551]
[1729712543902,0.301055,66433.0,66422.0,0.150552]
[1729712544119,0.150529,66432.0,66422.0,0.150552]
[1729712544541,0.150536,66429.0,66421.0,0.15050381]
[1729712544755,0.150536,66429.0,66421.0,0.30105781]
[1729712544972,0.301055,66433.0,66414.0,0.30114]
[1729712544973,0.22596998,66427.0,66414.0,0.30114]
[1729712545205,0.150543,66426.0,66417.0,0.150563]
[1729712545409,0.150544,66426.0,66417.0,0.150561]
[1729712545623,0.15055,66423.0,66415.0,0.152212]
[1729712545857,0.301095,66424.0,66415.0,0.001646]
[1729712546084,0.22596998,66425.0,66415.0,0.001646]
[1729712546293,0.150553,66422.0,66415.0,0.001646]
[1729712546651,0.150553,66422.0,66415.0,0.152214]
[1729712546867,0.3011,66423.0,66415.0,0.001646]
[1729712547073,0.150554,66422.0,66415.0,0.001646]
[1729712547267,0.301073,66429.0,66416.0,0.301129]
[1729712547268,0.301077,66428.0,66416.0,0.301129]
[1729712547501,0.22596998,66422.0,66416.0,0.301129]
[1729712547704,0.150543,66427.0,66417.0,0.301127]
[1729712548037,0.37651398,66426.0,66419.0,0.150558]
[1729712548247,0.22596998,66426.0,66420.0,0.150556]
[1729712548660,0.301069,66430.0,66418.0,0.301123]
[1729712548661,0.005,66431.0,66418.0,0.301123]
[1729712548886,0.37651198,66427.0,66421.0,0.150553]
[1729712549105,0.22596998,66427.0,66420.0,0.301114]
[1729712549309,0.37651198,66427.0,66421.0,0.150552]
[1729712549519,0.150542,66427.0,66422.0,0.17419982]
[1729712549725,0.150546,66425.0,66422.0,0.17419982]
[1729712549945,0.15054,66428.0,66422.0,0.17419982]
[1729712550169,0.301073,66429.0,66422.0,0.17419982]
[1729712550394,0.150539,66428.0,66422.0,0.32475082]
[1729712550631,0.1832,66438.0,66426.0,0.17419982]
[1729712550839,0.22596998,66434.0,66430.0,0.17419982]
[1729712551050,0.22596998,66434.0,66430.0,0.32473282]
[1729712551268,0.484236,66438.0,66433.0,0.150527]
[1729712551269,0.1832,66438.0,66433.0,0.150527]
[1729712551494,0.1832,66438.0,66430.0,0.17419982]
[1729712551495,0.1832,66438.0,66432.0,0.301059]
[1729712551740,0.1832,66438.0,66430.0,0.17419982]
[1729712551951,0.1832,66438.0,66435.0,0.301046]
[1729712552186,0.000823,66439.0,66438.0,0.150516]
[1729712552401,0.000823,66439.0,66438.0,0.32471582]
[1729712552589,0.000823,66439.0,66438.0,0.47521963]
[1729712553748,0.000823,66439.0,66438.0,0.150516]
[1729712554838,0.000823,66439.0,66438.0,0.30101981]
[1729712555458,0.000823,66439.0,66438.0,0.150516]
[1729712556320,0.000823,66439.0,66437.0,0.32471782]
[1729712556546,0.000823,66439.0,66438.0,0.150516]
[1729712558144,0.000823,66439.0,66438.0,0.47822982]
[1729712558353,0.000823,66439.0,66438.0,0.47521963]
[1729712558573,0.000823,66439.0,66438.0,0.30101981]
[1729712558789,0.000823,66439.0,66438.0,0.30402975]
[1729712559211,0.000823,66439.0,66438.0,0.47521963]
[1729712559667,0.000823,66439.0,66438.0,0.30496144]
[1729712560261,0.000823,66439.0,66438.0,0.30101981]
[1729712561361,0.000823,66439.0,66438.0,0.4040296]
[1729712561580,0.000823,66439.0,66438.0,0.40101981]
[1729712563436,0.000823,66439.0,66438.0,0.65621963]
[1729712563650,0.000823,66439.0,66438.0,0.54720181]
[1729712564091,0.000823,66439.0,66438.0,0.54220181]
[1729712565474,0.000823,66439.0,66438.0,0.63540163]
[1729712570820,0.000823,66439.0,66438.0,0.80960145]
[1729712571446,0.000823,66439.0,66438.0,0.81460145]
[1729712572092,0.000823,66439.0,66438.0,0.64040163]
[1729712572517,0.000823,66439.0,66438.0,0.81460145]
[1729712572760,0.000823,66439.0,66438.0,0.64040163]
[1729712573581,0.000823,66439.0,66438.0,0.63540163]
[1729712573786,0.000823,66439.0,66438.0,0.81460145]
[1729712574855,0.000823,66439.0,66438.0,0.82460145]
[1729712575059,0.000822,66449.0,66448.0,0.150493]
[1729712575269,0.000822,66449.0,66448.0,0.15350241]
[1729712575893,0.000822,66449.0,66448.0,0.25850241]
[1729712576108,0.000822,66449.0,66448.0,0.26350241]
[1729712576318,0.000822,66449.0,66448.0,0.260493]
[1729712576525,0.000822,66449.0,66448.0,0.34050214]
[1729712576731,0.000822,66449.0,66448.0,0.337493]
[1729712577357,0.000822,66449.0,66448.0,0.48799681]
[1729712577562,0.000822,66449.0,66448.0,0.49270296]
[1729712577972,0.000822,66449.0,66448.0,0.48799681]
[1729712578208,0.000853,66455.0,66454.0,0.26048]
[1729712578420,0.000853,66463.0,66462.0,0.42966082]
[1729712578618,0.000853,66463.0,66462.0,0.58016463]
[1729712579033,0.000853,66463.0,66462.0,0.58486985]
[1729712579241,0.000853,66463.0,66462.0,0.58686985]
[1729712579442,0.000853,66463.0,66462.0,0.58486985]
[1729712579847,0.000853,66463.0,66462.0,0.58016463]
[1729712580337,0.000853,66463.0,66462.0,0.40096481]
[1729712580593,0.000853,66463.0,66462.0,0.57516463]
[1729712581045,0.000853,66463.0,66462.0,0.57987027]
[1729712581287,0.000853,66463.0,66462.0,0.57516463]
[1729712581511,0.000853,66463.0,66462.0,0.57909628]
[1729712582139,0.000853,66463.0,66462.0,0.40489646]
[1729712583184,0.000853,66463.0,66462.0,0.30096481]
[1729712583424,0.000853,66463.0,66456.0,0.17419982]
[1729712583636,0.000853,66463.0,66462.0,0.150461]
[1729712583834,0.000853,66463.0,66461.0,0.150462]
[1729712584052,0.000853,66463.0,66462.0,0.150461]
[1729712584470,0.000853,66463.0,66462.0,0.30096481]
[1729712585753,0.000853,66463.0,66462.0,0.30397366]
[1729712586178,0.000853,66463.0,66462.0,0.3086793]
[1729712586384,0.000853,66463.0,66462.0,0.30567045]
[1729712586592,0.000853,66463.0,66462.0,0.30096481]
[1729712591738,0.000853,66463.0,66462.0,0.52994374]
[1729712591970,0.000853,66463.0,66462.0,0.41067055]
[1729712592995,0.000853,66463.0,66462.0,0.40567055]
[1729712593988,0.000853,66463.0,66462.0,0.30567055]
[1729712595238,0.000853,66463.0,66462.0,0.30567042]
[1729712596202,0.000853,66463.0,66462.0,0.30096481]
[1729712596459,0.000853,66463.0,66462.0,0.30567059]
[1729712596715,0.000853,66463.0,66462.0,0.30096481]
[1729712600529,0.000853,66463.0,66462.0,0.150461]
[1729712601035,0.000853,66463.0,66460.0,0.17419982]
[1729712601533,0.000853,66463.0,66455.0,0.001646]
[1729712601534,0.300937,66460.0,66455.0,0.001646]
[1729712601776,0.300923,66462.0,66455.0,0.001646]
[1729712602000,0.150462,66462.0,66456.0,0.17419982]
[1729712602260,0.000853,66463.0,66456.0,0.17419982]
[1729712602519,0.150464,66461.0,66455.0,0.001646]
[1729712602768,0.000853,66463.0,66456.0,0.17419982]
[1729712603253,0.000853,66463.0,66460.0,0.17419982]
[1729712603498,0.000853,66463.0,66460.0,0.32466482]
[1729712603746,0.000853,66463.0,66462.0,0.150461]
[1729712605709,0.174053,66463.0,66455.0,0.001646]
[1729712605951,0.174053,66463.0,66455.0,0.17584582]
[1729712605952,0.150463,66462.0,66455.0,0.17584582]
[1729712606195,0.300923,66462.0,66455.0,0.17584582]
[1729712606413,0.150464,66461.0,66455.0,0.17584582]
[1729712606619,0.174053,66463.0,66455.0,0.17584582]
[1729712606832,0.300926,66462.0,66455.0,0.17584582]
[1729712607054,0.300932,66460.0,66455.0,0.001646]
[1729712607271,0.150475,66456.0,66455.0,0.001646]
[1729712607511,0.300924,66462.0,66455.0,0.001646]
[1729712607749,0.150471,66458.0,66455.0,0.001646]
[1729712608191,0.150468,66460.0,66455.0,0.001646]
[1729712608632,0.174053,66463.0,66456.0,0.150475]
[1729712608860,0.174053,66463.0,66456.0,0.150473]
[1729712609055,0.174053,66463.0,66455.0,0.001646]
[1729712609261,0.150462,66462.0,66455.0,0.001646]
[1729712609507,0.174053,66463.0,66455.0,0.17584582]
[1729712609907,0.174053,66463.0,66456.0,0.150474]
[1729712610339,0.174053,66463.0,66455.0,0.17584582]
[1729712610547,0.174053,66463.0,66457.0,0.150473]
[1729712610751,0.324514,66463.0,66457.0,0.150473]
[1729712610954,0.174053,66463.0,66456.0,0.30095]
[1729712611158,0.324513,66463.0,66457.0,0.150473]
[1729712611813,0.324513,66463.0,66458.0,0.15047]
[1729712612036,0.150461,66462.0,66455.0,0.152122]
[1729712612266,0.174053,66463.0,66455.0,0.001646]
[1729712612514,0.155475,66456.0,66455.0,0.001646]
[1729712612789,0.178475,66456.0,66455.0,0.001646]
[1729712612988,0.356775,66456.0,66455.0,0.001646]
[1729712613199,0.358775,66456.0,66455.0,0.001646]
[1729712613426,0.50927881,66456.0,66455.0,0.001646]
[1729712613645,0.51927881,66456.0,66455.0,0.001646]
[1729712614105,0.178486,66451.0,66437.0,0.150517]
[1729712614330,0.178486,66451.0,66438.0,0.301031]
[1729712614565,0.01,66455.0,66444.0,0.17419982]
[1729712614816,0.150482,66453.0,66444.0,0.47520482]
[1729712615022,0.30096,66454.0,66441.0,0.301018]
[1729712615244,0.150486,66451.0,66444.0,0.301004]
[1729712615465,0.150486,66451.0,66445.0,0.150499]
[1729712615714,0.150485,66452.0,66446.0,0.150497]
[1729712615924,0.150486,66451.0,66446.0,0.150497]
[1729712616361,0.150486,66451.0,66444.0,0.301003]
[1729712616581,0.150486,66451.0,66445.0,0.150499]
[1729712616796,0.300964,66453.0,66444.0,0.301003]
[1729712617012,0.150486,66451.0,66445.0,0.150499]
[1729712617218,0.2450579,66451.0,66445.0,0.150499]
[1729712617438,0.150486,66451.0,66445.0,0.150499]
[1729712617640,0.150486,66451.0,66438.0,0.301031]
[1729712617859,0.150486,66451.0,66440.0,0.301019]
[1729712618057,0.150486,66451.0,66442.0,0.150506]
[1729712618261,0.150486,66451.0,66438.0,0.52700098]
[1729712618461,0.150486,66451.0,66443.0,0.150504]
[1729712618681,0.178486,66451.0,66438.0,0.301031]
[1729712618799,0.178486,66451.0,66442.0,0.150506]
[1729712619259,0.173486,66451.0,66440.0,0.301019]
[1729712619462,0.173486,66451.0,66442.0,0.150505]
[1729712619680,0.173486,66451.0,66443.0,0.150504]
[1729712619948,0.150486,66451.0,66442.0,0.30101]
[1729712620156,0.150486,66451.0,66440.0,0.60204]
[1729712620361,0.150486,66451.0,66444.0,0.150501]
[1729712621311,0.173486,66451.0,66444.0,0.150501]
[1729712621924,0.173486,66451.0,66442.0,0.150505]
[1729712622065,0.2748579,66451.0,66439.0,0.150512]
[1729712622664,0.178486,66451.0,66439.0,0.150512]
[1729712622881,0.32898981,66451.0,66437.0,0.150517]
[1729712623074,0.33098981,66451.0,66438.0,0.150514]
[1729712623279,0.33098981,66451.0,66450.0,0.001686]
[1729712623478,0.32898981,66451.0,66450.0,0.001686]
[1729712625657,0.178486,66451.0,66450.0,0.001686]
[1729712625852,0.40445598,66451.0,66450.0,0.001686]
[1729712626060,0.178486,66451.0,66450.0,0.001686]
[1729712627354,0.173486,66451.0,66450.0,0.001686]
[1729712627648,0.083853,66464.0,66461.0,0.150463]
[1729712627860,0.22596998,66456.0,66455.0,0.150477]
[1729712628126,0.083853,66464.0,66453.0,0.451446]
[1729712628383,0.083853,66464.0,66451.0,0.32470363]
[1729712628616,0.000853,66464.0,66451.0,0.32470363]
[1729712628847,0.151311,66464.0,66459.0,0.150467]
[1729712629097,0.22596998,66459.0,66457.0,0.150472]
[1729712629314,0.000853,66464.0,66455.0,0.300952]
[1729712629530,0.151311,66464.0,66459.0,0.150468]
[1729712629766,0.151312,66464.0,66458.0,0.15047]
[1729712629990,0.151312,66463.0,66458.0,0.15047]
[1729712630204,0.000853,66463.0,66458.0,0.150469]
[1729712630447,0.000853,66463.0,66451.0,0.32470363]
[1729712630948,0.000853,66463.0,66462.0,0.150461]
[1729712631457,0.000853,66463.0,66462.0,0.30096481]
[1729712633171,0.000853,66463.0,66462.0,0.30397383]
[1729712633376,0.000853,66463.0,66462.0,0.40096481]
[1729712634049,0.000853,66463.0,66462.0,0.40476856]
[1729712635349,0.000853,66463.0,66462.0,0.40976856]
[1729712635569,0.000853,66463.0,66462.0,0.41976856]
[1729712637128,0.000853,66463.0,66462.0,0.41476856]
[1729712637333,0.000853,66463.0,66462.0,0.40976856]
[1729712637540,0.000853,66463.0,66462.0,0.40476856]
[1729712637750,0.000853,66463.0,66462.0,0.30096481]
[1729712649792,0.000853,66463.0,66462.0,0.30397365]
[1729712649998,0.000853,66463.0,66462.0,0.30096481]
[1729712653005,0.000853,66463.0,66462.0,0.30698181]
[1729712653974,0.000853,66463.0,66462.0,0.30096481]
[1729712654170,0.000853,66463.0,66462.0,0.30999067]
[1729712654380,0.000853,66463.0,66462.0,0.30698181]
[1729712655693,0.000853,66463.0,66462.0,0.50018181]
[1729712655926,0.000853,66463.0,66462.0,0.50488728]
[1729712656585,0.000853,66463.0,66462.0,0.50688728]
[1729712656795,0.000853,66463.0,66462.0,0.50488728]
[1729712660311,0.000853,66463.0,66462.0,0.50018181]
[1729712661677,0.000853,66463.0,66462.0,0.50488689]
[1729712663743,0.000853,66463.0,66462.0,0.5048869]
[1729712664616,0.000853,66463.0,66462.0,0.5068869]
[1729712665063,0.000853,66463.0,66462.0,0.5048869]
[1729712665273,0.000853,66463.0,66462.0,0.5068869]
[1729712665514,0.000853,66463.0,66462.0,0.5048869]
[1729712665982,0.000853,66464.0,66463.0,0.31940344]
[1729712665983,0.000753,66464.0,66463.0,0.31940344]
[1729712666185,0.000753,66464.0,66463.0,0.47461234]
[1729712666417,0.000853,66465.0,66464.0,0.255457]
[1729712666560,0.000853,66465.0,66464.0,0.58486572]
[1729712666760,0.22596998,66482.0,66481.0,0.150418]
[1729712666962,0.0001,66491.0,66488.0,0.150403]
[1729712667192,0.0001,66491.0,66489.0,0.1504]
[1729712667392,0.0001,66491.0,66489.0,0.30090381]
[1729712667605,0.22702098,66498.0,66497.0,0.150382]
[1729712667606,0.22308298,66498.0,66497.0,0.150382]
[1729712667804,0.22308298,66498.0,66497.0,0.32458182]
[1729712668008,0.22308298,66498.0,66497.0,0.47508563]
[1729712668009,0.000852,66498.0,66497.0,0.47508563]
[1729712668176,0.000852,66498.0,66497.0,0.64928545]
[1729712668381,0.000852,66498.0,66497.0,0.47508563]
[1729712668594,0.000852,66498.0,66497.0,0.47978857]
[1729712669223,0.000852,66498.0,66497.0,0.48375545]
[1729712670673,0.000852,66498.0,66497.0,0.30088581]
[1729712671142,0.000852,66498.0,66497.0,0.47508563]
[1729712672176,0.000852,66498.0,66497.0,0.30088581]
[1729712672494,0.000852,66498.0,66493.0,0.17419982]
[1729712672898,0.000852,66498.0,66493.0,0.47498282]
[1729712673105,0.000652,66498.0,66493.0,0.47498282]
[1729712673306,0.000652,66498.0,66497.0,0.150382]
[1729712674158,0.000652,66498.0,66494.0,0.300776]
[1729712674365,0.000652,66498.0,66497.0,0.150382]
[1729712674765,0.000652,66498.0,66495.0,0.150386]
[1729712675012,0.000652,66498.0,66497.0,0.17419982]
[1729712675223,0.000652,66498.0,66497.0,0.32458182]
[1729712677327,0.000652,66498.0,66494.0,0.300779]
[1729712677555,0.000652,66498.0,66497.0,0.150382]
[1729712678327,0.000652,66498.0,66497.0,0.32458182]
[1729712678739,0.000652,66498.0,66497.0,0.47508563]
[1729712680149,0.000652,66498.0,66497.0,0.47901355]
[1729712680320,0.000652,66498.0,66497.0,0.30088581]
[1729712680727,0.000652,66498.0,66494.0,0.601558]
[1729712680728,0.000652,66498.0,66494.0,0.300779]
[1729712680935,0.000652,66498.0,66489.0,0.17419982]
[1729712681108,0.000652,66498.0,66495.0,0.150386]
[1729712681308,0.000652,66498.0,66491.0,0.150396]
[1729712681309,0.1728,66497.0,66491.0,0.150396]
[1729712681490,0.1728,66497.0,66490.0,0.15050381]
[1729712681908,0.1728,66497.0,66487.0,0.01547885]
[1729712681909,0.150389,66494.0,66487.0,0.01547885]
[1729712682154,0.023,66496.0,66492.0,0.150392]
[1729712682727,0.023,66496.0,66489.0,0.300801]
[1729712682944,0.023,66496.0,66471.0,0.378681]
[1729712682945,0.22596998,66492.0,66483.0,0.300826]
[1729712683141,0.150418,66482.0,66477.0,0.22596998]
[1729712683344,0.451249,66482.0,66477.0,0.22596998]
[1729712683536,0.150433,66475.0,66464.0,0.150457]
[1729712683837,0.150433,66475.0,66467.0,0.22596998]
[1729712683838,0.1849,66474.0,66467.0,0.22596998]
[1729712684043,0.1849,66474.0,66465.0,0.15050381]
[1729712684241,0.1849,66474.0,66467.0,0.300901]
[1729712684442,0.150437,66473.0,66466.0,0.150452]
[1729712684646,0.335335,66474.0,66467.0,0.150448]
[1729712684862,0.150437,66473.0,66464.0,0.300914]
[1729712685074,0.1849,66474.0,66468.0,0.150447]
[1729712685316,0.1849,66474.0,66465.0,0.15050381]
[1729712685503,0.150439,66472.0,66465.0,0.150453]
[1729712685714,0.300879,66472.0,66461.0,0.300925]
[1729712685914,0.023,66473.0,66461.0,0.15050381]
[1729712686125,0.023,66467.0,66455.0,0.061815]
[1729712686389,0.023,66465.0,66456.0,0.300951]
[1729712686621,0.023,66465.0,66460.0,0.150465]
[1729712686826,0.173449,66468.0,66461.0,0.150463]
[1729712687030,0.023,66468.0,66461.0,0.150463]
[1729712687236,0.023,66468.0,66458.0,0.17419982]
[1729712687442,0.023,66468.0,66461.0,0.150463]
[1729712687651,0.023,66468.0,66462.0,0.15046]
[1729712688089,0.023,66468.0,66458.0,0.47514082]
[1729712688297,0.023,66466.0,66459.0,0.300937]
[1729712688497,0.023,66466.0,66460.0,0.300932]
[1729712688702,0.150452,66466.0,66457.0,0.300946]
[1729712688926,0.023,66466.0,66455.0,0.3026]
[1729712689172,0.023,66466.0,66456.0,0.15050381]
[1729712689379,0.0782,66460.0,66455.0,0.152122]
[1729712689586,0.0782,66460.0,66455.0,0.001646]
[1729712689800,0.0782,66460.0,66455.0,0.152121]
[1729712690011,0.0782,66460.0,66457.0,0.150473]
[1729712690232,0.1012,66467.0,66455.0,0.001646]
[1729712690461,0.1012,66467.0,66463.0,0.150458]
[1729712690680,0.1012,66467.0,66457.0,0.47514582]
[1729712690882,0.0782,66467.0,66462.0,0.15046]
[1729712691091,0.22596998,66463.0,66455.0,0.001646]
[1729712691302,0.0782,66467.0,66456.0,0.300951]
[1729712691507,0.150457,66464.0,66455.0,0.001646]
[1729712691727,0.150459,66463.0,66456.0,0.150475]
[1729712691931,0.150457,66465.0,66457.0,0.150473]
[1729712692141,0.023,66464.0,66457.0,0.150473]
[1729712692550,0.150457,66464.0,66456.0,0.150474]
[1729712692757,0.023,66463.0,66455.0,0.001646]
[1729712692994,0.023,66465.0,66455.0,0.001646]
[1729712693176,0.150452,66466.0,66455.0,0.001646]
[1729712693177,0.24896998,66466.0,66456.0,0.15050381]
[1729712693373,0.24896998,66466.0,66462.0,0.15046]
[1729712694017,0.24896998,66466.0,66455.0,0.001646]
[1729712694018,0.023,66464.0,66455.0,0.001646]
[1729712694221,0.023,66466.0,66455.0,0.001646]
[1729712694435,0.0782,66467.0,66456.0,0.001646]
[1729712694436,0.178473,66457.0,66456.0,0.001646]
[1729712695049,0.173473,66457.0,66456.0,0.001646]
[1729712695251,0.178473,66457.0,66456.0,0.001646]
[1729712695972,0.023,66457.0,66456.0,0.001646]
[1729712696168,0.48512082,66463.0,66456.0,0.001646]
[1729712696169,0.023,66463.0,66456.0,0.001646]
[1729712696419,0.150468,66460.0,66456.0,0.001646]
[1729712696630,0.023,66459.0,66456.0,0.001646]
[1729712696870,0.023,66460.0,66456.0,0.001646]
[1729712697072,0.305918,66464.0,66456.0,0.001646]
[1729712697073,0.17346,66463.0,66456.0,0.15212]
[1729712697485,0.023,66464.0,66457.0,0.300945]
[1729712697677,0.1849,66465.0,66456.0,0.001646]
[1729712697678,0.023,66462.0,66456.0,0.001646]
[1729712698026,0.023,66463.0,66456.0,0.001646]
[1729712698223,0.023,66464.0,66458.0,0.300941]
[1729712698427,0.023,66464.0,66458.0,0.45141]
[1729712698853,0.023,66464.0,66458.0,0.300941]
[1729712699063,0.023,66464.0,66458.0,0.150469]
[1729712699599,0.023,66464.0,66456.0,0.001646]
[1729712700033,0.023,66460.0,66456.0,0.001646]
[1729712700239,0.023,66458.0,66456.0,0.001646]
[1729712700436,0.173473,66457.0,66456.0,0.001646]
[1729712700669,0.58477681,66457.0,66456.0,0.001646]
[1729712701985,0.74697663,66457.0,66456.0,0.001646]
[1729712702185,0.427273,66457.0,66456.0,0.001646]
[1729712702396,0.417273,66457.0,66456.0,0.001646]
[1729712705358,0.64324298,66457.0,66456.0,0.001646]
[1729712705563,0.72640799,66457.0,66456.0,0.001646]
[1729712705751,0.017,66456.0,66455.0,0.001646]
[1729712705978,0.69387881,66456.0,66455.0,0.001646]
[1729712706543,0.69387881,66456.0,66450.0,0.001686]
[1729712706544,0.290486,66451.0,66450.0,0.001686]
[1729712706744,0.80458963,66451.0,66450.0,0.001686]
[1729712707006,0.80258963,66451.0,66450.0,0.001686]
[1729712707797,0.80458963,66451.0,66450.0,0.001686]
[1729712709455,0.80458963,66451.0,66426.0,0.301084]
[1729712709456,0.173527,66433.0,66426.0,0.150542]
[1729712709864,0.173527,66433.0,66425.0,0.150545]
[1729712709865,0.150536,66430.0,66425.0,0.150545]
[1729712710069,0.173538,66429.0,66423.0,0.3011]
[1729712710215,0.023,66429.0,66425.0,0.150544]
[1729712710418,0.173533,66431.0,66426.0,0.150541]
[1729712710623,0.173533,66431.0,66427.0,0.150539]
[1729712710624,0.023,66431.0,66427.0,0.150539]
[1729712710825,0.023,66431.0,66426.0,0.301086]
[1729712711030,0.023,66431.0,66426.0,0.451627]
[1729712711031,0.150532,66431.0,66426.0,0.451627]
[1729712711232,0.023,66430.0,66422.0,0.001646]
[1729712711420,0.023,66425.0,66422.0,0.152197]
[1729712711622,0.17355,66423.0,66422.0,0.001646]
[1729712714262,0.59265381,66423.0,66422.0,0.001646]
[1729712714401,0.59065381,66423.0,66422.0,0.007646]
[1729712716282,0.43015,66423.0,66422.0,0.007646]
[1729712716495,0.382973,66430.0,66422.0,0.007646]
[1729712716708,0.015,66433.0,66424.0,0.301095]
[1729712716709,0.22596998,66429.0,66424.0,0.301095]
[1729712716911,0.37650698,66429.0,66422.0,0.007646]
[1729712717122,0.150533,66431.0,66425.0,0.150544]
[1729712717333,0.1736,66434.0,66429.0,0.150536]
[1729712717545,0.2503315,66433.0,66428.0,0.150538]
[1729712717760,0.2503315,66433.0,66423.0,0.17419982]
[1729712717761,0.150538,66429.0,66423.0,0.150549]
[1729712717987,0.023,66427.0,66422.0,0.158198]
[1729712718221,0.023,66427.0,66423.0,0.150549]
[1729712718503,0.023,66427.0,66422.0,0.007646]
[1729712718504,0.023,66423.0,66422.0,0.007646]
[1729712718729,0.17355,66423.0,66422.0,0.007646]
[1729712721641,0.023,66425.0,66422.0,0.007646]
[1729712721846,0.023,66423.0,66422.0,0.007646]
[1729712722495,0.24896998,66423.0,66422.0,0.007646]